bitfinex/quotes_ETHUSD_20220123
["timestamp","ask_amount","ask_price","bid_price","bid_amount"]
[1642971532262,15.7177,2427.0,2425.6,0.29578848]
[1642971532462,15.7177,2427.0,2425.7,0.496]
[1642971532657,15.7177,2427.0,2425.7,0.796]
[1642971532854,15.7177,2427.0,2426.3,1.23836767]
[1642971533056,7.43,2427.0,2426.3,1.23836767]
[1642971533509,7.43,2427.0,2425.7,2.096]
[1642971533706,7.43,2427.0,2425.7,4.15847]
[1642971534805,7.43,2427.0,2425.7,3.66247]
[1642971535013,7.43,2427.0,2426.1,1.10501015]
[1642971537046,7.38,2427.0,2426.1,1.10501015]
[1642971537249,0.01974057,2427.1,2426.1,1.10501015]
[1642971537250,0.31974057,2427.1,2426.1,1.10501015]
[1642971538958,0.31974057,2427.1,2426.1,1.70501015]
[1642971538959,0.01974057,2427.1,2426.1,1.70501015]
[1642971539456,0.007,2427.1,2426.1,1.70501015]
[1642971540158,0.007,2427.1,2426.1,1.10501015]
[1642971541099,0.007,2427.1,2426.1,0.86417454]
[1642971541297,6.92024084,2427.1,2426.1,0.86417454]
[1642971541500,0.007,2427.1,2426.1,0.86417454]
[1642971542701,0.007,2427.1,2426.1,1.16417454]
[1642971542906,0.007,2427.1,2426.1,0.86417454]
[1642971543105,0.007,2427.1,2426.1,1.46417454]
[1642971543508,0.007,2427.1,2426.1,0.86417454]
[1642971543710,6.91324084,2427.0,2425.6,1.30157848]
[1642971543913,6.91324084,2427.0,2425.6,0.08957848]
[1642971543914,6.91324084,2426.8,2425.6,0.08957848]
[1642971544111,7.70924084,2426.8,2425.6,0.08957848]
[1642971544310,7.91324084,2426.7,2425.6,0.08957848]
[1642971544546,6.91324084,2426.6,2425.6,0.08957848]
[1642971544747,1.21194599,2426.5,2425.6,0.08957848]
[1642971544946,2.51194599,2426.5,2425.6,0.08957848]
[1642971545146,6.91324084,2426.6,2425.6,0.08957848]
[1642971545345,7.91324084,2426.7,2425.6,0.08957848]
[1642971545551,8.21324084,2426.7,2425.6,0.08957848]
[1642971545946,6.91324084,2426.5,2425.6,0.08957848]
[1642971546949,1.39988358,2426.6,2425.6,0.08957848]
[1642971546950,6.91324084,2426.4,2425.6,0.08957848]
[1642971547355,1.69988358,2426.6,2425.6,0.08957848]
[1642971547356,6.91324084,2426.5,2425.6,0.08957848]
[1642971548161,6.91324084,2426.6,2425.6,0.08957848]
[1642971548414,6.91324084,2426.7,2425.6,0.08957848]
[1642971548618,10.56434084,2426.8,2426.2,1.14440676]
[1642971548810,6.91324084,2426.9,2426.2,1.14440676]
[1642971549027,0.01415205,2426.5,2426.2,1.14440676]
[1642971549813,0.01296063,2426.5,2425.9,1.33124]
[1642971550018,6.92620147,2426.5,2425.6,0.08957848]
[1642971551011,0.01296063,2426.5,2425.9,1.22740346]
[1642971551213,0.01296063,2426.5,2425.9,0.96594517]
[1642971551411,6.87620147,2426.6,2425.6,1.08957848]
[1642971551711,6.87620147,2426.6,2425.6,0.38957848]
[1642971552346,8.65433355,2426.9,2425.6,1.42096848]
[1642971552549,0.007,2427.1,2425.8,2.36242]
[1642971552747,0.007,2427.1,2425.8,27.63242]
[1642971552949,0.007,2427.1,2425.9,24.77621]
[1642971553151,0.007,2427.1,2426.1,24.27]
[1642971553360,0.007,2427.1,2426.7,1.26004237]
[1642971553553,0.007,2427.1,2426.7,0.59672863]
[1642971555906,0.007,2427.1,2426.7,0.89672863]
[1642971556298,0.007,2427.1,2426.7,0.59672863]
[1642971556696,0.007,2427.1,2426.7,0.89672863]
[1642971557297,0.007,2427.1,2426.8,0.20621]
[1642971557501,0.007,2427.1,2427.0,6.05621]
[1642971557703,6.95980925,2427.3,2427.0,6.05621]
[1642971557704,6.95980925,2427.6,2427.1,3.35]
[1642971557903,6.99980925,2427.9,2427.0,2.30221]
[1642971558098,6.95980925,2427.8,2427.0,1.30221]
[1642971558298,0.04,2427.9,2427.3,1.16965008]
[1642971558299,6.99980925,2427.9,2427.3,1.16965008]
[1642971558509,6.99980925,2427.9,2426.9,1.0]
[1642971558510,6.95980925,2427.7,2426.9,1.0]
[1642971558704,6.95980925,2427.6,2426.8,2.06153]
[1642971558905,6.95980925,2427.7,2426.8,2.06153]
[1642971559107,6.95980925,2427.6,2426.8,2.06153]
[1642971559306,6.95980925,2427.6,2426.5,1.2043]
[1642971559554,6.95980925,2427.4,2426.5,1.2043]
[1642971559856,1.45704792,2427.6,2426.4,1.1933]
[1642971559857,6.97273753,2427.2,2426.4,1.1933]
[1642971560054,6.97273753,2427.2,2426.1,2.06202]
[1642971560357,6.97273753,2427.2,2425.9,0.20621]
[1642971560558,6.92273753,2427.2,2425.9,0.20621]
[1642971560756,3.59571919,2427.4,2425.8,1.03131]
[1642971560757,1.43754959,2426.9,2425.8,1.03131]
[1642971560961,1.43754959,2426.9,2425.5,0.04999999]
[1642971560962,0.10060614,2426.8,2425.5,0.04999999]
[1642971561163,0.10060614,2426.8,2425.1,5.018]
[1642971561164,3.09943889,2426.8,2425.1,5.018]
[1642971561356,3.31435342,2426.8,2425.1,5.018]
[1642971561559,3.31435342,2426.8,2425.1,6.04962]
[1642971561756,1.25893916,2426.5,2425.4,1.33710002]
[1642971561960,2.65872797,2426.4,2425.4,1.33710002]
[1642971562359,10.23372067,2426.8,2425.5,0.3]
[1642971562666,6.06659997,2426.8,2425.6,0.20621]
[1642971562958,0.08819997,2426.8,2425.7,0.6608]
[1642971563156,0.08819997,2426.8,2426.4,1.47454152]
[1642971563415,0.08819997,2426.8,2426.4,1.47753994]
[1642971564016,0.04862149,2427.4,2426.4,1.47753994]
[1642971565423,0.04862149,2427.4,2426.4,1.77753994]
[1642971565620,7.00037304,2427.4,2426.4,1.77753994]
[1642971565823,6.99175155,2427.9,2426.6,24.28245143]
[1642971566020,6.99175155,2427.9,2426.7,5.034792]
[1642971566218,6.99175155,2427.9,2426.7,2.16691]
[1642971566422,6.99175155,2427.9,2427.3,1.46054362]
[1642971566622,0.04,2427.9,2427.3,1.76054362]
[1642971566920,0.04,2427.9,2427.3,0.6]
[1642971567154,0.10809632,2427.2,2426.7,1.1647]
[1642971567352,0.10809632,2427.2,2426.8,2.0614]
[1642971567554,0.10809632,2427.2,2426.8,3.0614]
[1642971567956,0.10809632,2427.2,2427.1,1.4917889]
[1642971568154,6.99175155,2427.9,2427.1,1.4917889]
[1642971568558,0.04,2427.9,2427.1,1.4917889]
[1642971568964,0.04,2427.9,2427.1,1.6976789]
[1642971569572,6.99175155,2427.9,2427.1,1.6976789]
[1642971569761,6.99175155,2427.9,2426.9,1.0]
[1642971569960,6.95175155,2427.7,2426.8,3.0614]
[1642971570164,6.95175155,2427.5,2426.7,0.1647]
[1642971570366,6.95175155,2427.3,2426.7,0.1647]
[1642971571002,6.05,2427.2,2426.3,1.12687106]
[1642971571404,13.00175155,2427.2,2426.3,1.12687106]
[1642971571611,6.95175155,2427.2,2426.3,1.12687106]
[1642971571802,0.1647,2427.1,2426.3,1.12687106]
[1642971572405,0.1647,2427.1,2426.4,0.20589]
[1642971572608,6.95175155,2427.6,2426.4,2.51686256]
[1642971572806,6.95175155,2427.7,2426.5,1.0]
[1642971573009,6.95175155,2427.4,2426.6,0.20589]
[1642971573210,6.95175155,2427.7,2427.1,1.2084144]
[1642971573607,6.95175155,2427.8,2427.1,1.03202406]
[1642971574006,6.99175155,2427.9,2426.9,0.20589]
[1642971574217,6.99175155,2427.9,2426.3,0.1647]
[1642971574218,0.01216354,2427.0,2426.3,0.1647]
[1642971574409,0.10025,2426.7,2426.3,0.1647]
[1642971575051,0.10025,2426.7,2426.4,1.19195569]
[1642971575252,0.10025,2426.7,2426.4,1.19204569]
[1642971575651,10.86355155,2427.6,2426.6,9e-05]
[1642971575859,6.95175155,2427.7,2426.7,0.1648]
[1642971576054,0.04,2427.9,2426.7,0.1648]
[1642971576055,0.04,2427.9,2426.8,0.50832785]
[1642971576253,0.04,2427.9,2427.0,2.06126]
[1642971576459,0.04,2427.9,2427.0,2.55726]
[1642971576654,0.04,2427.9,2427.5,1.10820543]
[1642971576865,0.04,2427.9,2427.5,1.70820543]
[1642971577056,0.04,2427.9,2427.2,9e-05]
[1642971577252,0.04,2427.9,2427.5,0.3]
[1642971577461,0.04,2428.1,2427.6,2.54608999]
[1642971577655,0.04,2428.1,2427.7,25.27]
[1642971577656,0.0001,2428.1,2427.7,25.27]
[1642971577852,0.0001,2428.1,2427.8,0.1647]
[1642971578055,0.04,2428.3,2427.8,0.1647]
[1642971578056,0.04,2428.3,2427.8,1.32146555]
[1642971578311,0.1645,2428.0,2427.8,1.32146555]
[1642971578515,0.04,2428.3,2427.8,1.32146555]
[1642971578715,0.1647,2428.2,2427.8,1.32146555]
[1642971578914,0.1647,2428.2,2427.2,9e-05]
[1642971579313,0.1647,2428.2,2427.0,0.05008999]
[1642971579519,0.04,2428.3,2427.2,1.03068]
[1642971579715,0.1647,2428.2,2427.2,1.03068]
[1642971579917,0.1647,2428.2,2427.3,1.32237196]
[1642971580517,2.56131577,2428.2,2427.3,1.32237196]
[1642971580717,0.1647,2428.2,2427.3,1.32237196]
[1642971581319,2.62620626,2428.2,2427.0,0.04999999]
[1642971581521,2.62620626,2428.2,2426.5,6.2346]
[1642971581522,9.40234046,2428.1,2426.5,1.1666]
[1642971581720,0.01264778,2427.8,2426.2,9e-05]
[1642971581923,0.01229845,2427.3,2425.9,0.1648]
[1642971582160,0.01229845,2427.3,2425.8,9e-05]
[1642971582161,0.6607,2427.2,2425.8,9e-05]
[1642971582349,0.6607,2427.2,2426.3,1.22491183]
[1642971582350,3.9957,2427.1,2426.3,1.22491183]
[1642971582557,0.1647,2427.7,2426.5,0.0127764]
[1642971582755,0.00271468,2427.9,2426.6,0.1648]
[1642971582955,0.00271468,2427.9,2426.7,9e-05]
[1642971583154,0.6607,2428.2,2426.8,0.1647]
[1642971583354,0.1647,2428.2,2427.5,1.13406214]
[1642971583554,0.04,2428.3,2427.5,0.51115299]
[1642971583756,0.04,2428.3,2427.5,0.81115299]
[1642971583954,0.04,2428.3,2427.5,1.11115299]
[1642971584555,0.04,2428.3,2427.2,9e-05]
[1642971584764,0.01298113,2427.3,2426.8,0.1647]
[1642971584962,0.01298113,2427.3,2425.7,1.03137]
[1642971584963,0.1647,2427.2,2425.7,1.03137]
[1642971585157,0.6607,2427.2,2425.7,1.03137]
[1642971585357,2.03236214,2427.1,2425.7,9e-05]
[1642971585560,2.03236214,2427.1,2425.0,1.28548306]
[1642971585561,1.31653902,2426.0,2425.0,1.28548306]
[1642971585804,1.31653902,2426.0,2424.8,9e-05]
[1642971586010,0.496,2426.0,2424.8,9e-05]
[1642971586415,0.03796187,2426.6,2424.8,9e-05]
[1642971586610,4.09578537,2426.9,2425.1,0.0124736]
[1642971586811,4.09578537,2426.9,2424.8,2.03236214]
[1642971586812,1.0,2426.7,2424.8,2.03236214]
[1642971587010,1.09111446,2426.4,2424.8,2.03236214]
[1642971587213,0.37057,2426.3,2424.7,3.09432]
[1642971587415,4.47907,2426.3,2424.7,9e-05]
[1642971587809,4.2732,2426.3,2424.7,9e-05]
[1642971588208,4.2732,2426.3,2425.2,1.49877835]
[1642971588411,4.5732,2426.3,2425.2,1.49877835]
[1642971588608,4.2732,2426.3,2425.2,1.49877835]
[1642971589881,4.2732,2426.3,2425.7,1.17613419]
[1642971590083,4.1085,2426.3,2425.7,1.17613419]
[1642971590278,0.13682146,2426.7,2425.7,1.17613419]
[1642971590677,0.1647,2426.6,2425.2,0.01264304]
[1642971591680,1.29722586,2426.6,2425.5,1.53122003]
[1642971592080,0.1647,2426.6,2425.5,1.53122003]
[1642971594107,0.20587,2426.5,2425.2,0.01264304]
[1642971594404,3.07940472,2426.4,2424.8,1.16239]
[1642971594803,0.1647,2426.4,2424.8,1.16239]
[1642971595210,0.1647,2426.4,2425.7,1.32031712]
[1642971595605,0.20587,2426.5,2425.2,1.01254437]
[1642971596204,0.1647,2426.6,2425.3,2.35827923]
[1642971596407,0.13682146,2426.7,2425.3,4.42104463]
[1642971596604,0.13682146,2426.7,2425.4,1.1648]
[1642971596803,0.13682146,2426.7,2425.5,2.37504591]
[1642971597080,0.13682146,2426.7,2425.9,1.21561656]
[1642971597274,0.13682146,2426.7,2425.9,1.21570656]
[1642971597474,0.13682146,2426.7,2425.9,1.21561656]
[1642971597676,0.13682146,2426.7,2425.7,1.00009]
[1642971598480,0.13682146,2426.7,2425.7,9e-05]
[1642971598681,0.13682146,2426.7,2426.0,1.12153934]
[1642971600684,0.13682146,2426.7,2425.7,1.00009]
[1642971600907,7.08983204,2426.7,2425.3,0.1648]
[1642971601106,0.1647,2426.6,2425.1,9e-05]
[1642971601305,0.01261982,2426.5,2425.1,9e-05]
[1642971601506,0.1647,2426.4,2425.1,9e-05]
[1642971601902,1.44925762,2426.4,2425.1,9e-05]
[1642971602412,24.27,2426.2,2425.8,8.695e-05]
[1642971602606,0.0008,2425.6,2424.2,2.03236214]
[1642971602806,0.0008,2425.2,2424.1,8.786559]
[1642971603007,0.0008,2425.2,2424.1,7.595159]
[1642971603609,0.0008,2425.2,2424.2,1.28750765]
[1642971603809,0.0008,2425.2,2424.1,7.595069]
[1642971604011,0.1647,2425.1,2424.1,0.165069]
[1642971604210,0.496,2425.0,2424.1,0.165069]
[1642971604412,0.1647,2424.9,2424.1,0.165069]
[1642971604652,0.496,2424.8,2424.1,0.165069]
[1642971604851,1.23093691,2424.4,2424.1,0.165069]
[1642971605055,1.23093691,2424.4,2423.0,0.1648]
[1642971605056,0.20587,2424.2,2423.0,0.1648]
[1642971605256,0.05050731,2424.0,2423.0,0.1648]
[1642971605453,0.04413242,2423.8,2423.0,0.1648]
[1642971605778,0.04413242,2423.8,2422.5,0.01305989]
[1642971605958,1.38752889,2423.7,2422.7,1.10828986]
[1642971606154,0.1647,2423.7,2422.5,0.01296989]
[1642971606358,0.6607,2423.7,2422.5,0.01296989]
[1642971606758,2.03236214,2424.3,2422.5,0.01296989]
[1642971606759,0.1647,2424.3,2422.6,0.23552602]
[1642971606961,3.8661,2424.5,2423.2,0.0123766]
[1642971606962,2.03236214,2424.4,2423.2,0.0123766]
[1642971607160,0.1647,2424.4,2423.8,1.17173594]
[1642971607357,4.1661,2424.5,2423.8,1.17173594]
[1642971607554,0.3,2424.5,2423.8,1.17173594]
[1642971607753,0.1647,2424.6,2423.8,1.17173594]
[1642971607754,0.4647,2424.6,2423.8,1.17173594]
[1642971608157,0.1647,2424.6,2423.8,1.17173594]
[1642971608423,0.1647,2424.6,2423.8,1.12173594]
[1642971609423,0.1647,2424.6,2424.2,0.13006648]
[1642971610118,0.43682146,2425.0,2424.2,0.13006648]
[1642971610419,0.43682146,2425.0,2424.3,1.17864045]
[1642971610420,0.08682146,2425.0,2424.3,1.17864045]
[1642971610717,0.29269146,2425.0,2424.2,0.13006648]
[1642971610921,2.6458215,2424.9,2424.2,0.13006648]
[1642971611119,2.9458215,2424.9,2424.2,0.13006648]
[1642971611519,1.42795021,2424.6,2424.2,0.13006648]
[1642971611719,3.05659787,2424.5,2424.2,0.13006648]
[1642971612260,0.4647,2424.5,2424.2,0.13006648]
[1642971612457,2.34093797,2424.4,2424.2,6.648e-05]
[1642971612658,3.2645,2424.3,2424.2,6.648e-05]
[1642971612859,0.00073352,2424.1,2423.2,0.88129234]
[1642971613060,2.41531482,2424.1,2423.2,0.88129234]
[1642971613464,2.71531482,2424.1,2423.2,0.88129234]
[1642971613662,2.71531482,2424.1,2423.0,0.01219452]
[1642971613663,0.30073352,2424.1,2423.0,0.01219452]
[1642971613862,2.30610475,2424.0,2423.4,0.04999999]
[1642971614064,2.30610475,2424.0,2423.0,0.01219452]
[1642971614262,2.30610475,2424.0,2422.7,9e-05]
[1642971614263,2.60610475,2424.0,2422.7,9e-05]
[1642971614463,0.37037,2423.9,2422.8,9e-05]
[1642971614665,0.3,2424.0,2423.1,1.07504246]
[1642971614868,0.00073352,2424.1,2424.0,0.08245071]
[1642971615666,0.00073352,2424.1,2424.0,1.41210592]
[1642971616112,0.00073352,2424.1,2424.0,1.71210592]
[1642971617210,0.00073352,2424.1,2423.3,1.1269]
[1642971617411,0.00073352,2424.1,2423.0,3.8151]
[1642971617608,0.00073352,2424.1,2422.8,1.2266]
[1642971617609,0.165,2424.0,2422.8,1.2266]
[1642971617811,0.00073352,2424.1,2422.8,1.3916]
[1642971618010,0.1643,2424.0,2422.8,1.2266]
[1642971618208,0.00073352,2424.1,2423.6,1.51988822]
[1642971618621,0.1633,2424.9,2423.7,6.1]
[1642971618915,6.90701466,2426.2,2424.0,0.01266187]
[1642971618916,0.163,2425.1,2424.0,0.01266187]
[1642971619115,0.0008,2425.2,2424.6,0.01218979]
[1642971619318,0.0008,2425.2,2424.6,1.23938743]
[1642971619555,0.0008,2425.2,2424.1,0.30009]
[1642971619857,0.0008,2425.2,2424.1,0.85189097]
[1642971620255,2.48137465,2425.6,2424.1,0.85189097]
[1642971620256,0.1628,2425.6,2424.5,0.3004963]
[1642971620458,0.0008,2425.6,2425.3,0.85180097]
[1642971620660,0.134179,2425.7,2425.6,3.75]
[1642971620661,7.9e-05,2425.7,2425.6,3.75]
[1642971620856,7.9e-05,2425.7,2425.6,4.05]
[1642971621057,0.084179,2426.2,2426.1,3.4004963]
[1642971621262,0.084179,2426.2,2426.1,3.71306807]
[1642971621459,0.084179,2426.2,2426.1,30.3420438]
[1642971621655,0.134179,2426.7,2426.2,30.07]
[1642971622055,0.134179,2426.7,2426.3,1.0]
[1642971622254,0.134179,2426.7,2426.2,1.0]
[1642971622455,0.134179,2426.7,2426.1,1.65906573]
[1642971622654,0.134179,2426.7,2426.2,2.28488897]
[1642971622859,0.04,2427.0,2426.5,7.7]
[1642971623057,0.04,2427.0,2426.6,0.496]
[1642971623308,0.04,2427.0,2426.6,1.796]
[1642971623704,0.04,2427.0,2426.7,1.39846317]
[1642971624104,0.04,2427.0,2426.7,2.39846317]
[1642971624305,0.04,2427.0,2426.7,1.39846317]
[1642971624506,0.04,2427.0,2426.9,9e-05]
[1642971624706,0.04,2427.0,2426.7,9e-05]
[1642971624909,0.04,2427.0,2426.6,0.3]
[1642971625309,0.04,2427.0,2426.4,0.1648]
[1642971625507,0.204,2427.0,2426.4,0.1648]
[1642971625708,0.04,2427.0,2426.5,1.289986]
[1642971626607,0.04,2427.0,2426.5,2.589986]
[1642971626807,0.04,2427.0,2426.5,2.590076]
[1642971627465,0.04,2427.0,2426.9,1.51672211]
[1642971627669,0.04,2427.0,2426.9,1.81681211]
[1642971627866,0.04,2427.0,2426.9,6.56681211]
[1642971628065,0.04,2427.0,2426.9,7.56681211]
[1642971628971,0.04,2427.0,2426.9,2.81672211]
[1642971629266,0.04,2427.0,2426.9,1.81681211]
[1642971629466,0.04,2427.0,2426.9,2.81681211]
[1642971629869,0.04,2427.0,2426.9,1.81681211]
[1642971630072,0.03,2427.1,2426.9,2.81672211]
[1642971630373,0.03,2427.1,2426.9,0.3]
[1642971630573,0.03,2427.1,2426.6,1.0]
[1642971630817,0.03,2427.1,2426.6,0.3]
[1642971631112,0.03,2427.1,2426.4,1.0308627]
[1642971631315,0.03,2427.1,2427.0,4.16590777]
[1642971631521,0.174179,2427.4,2427.0,1.91590777]
[1642971631716,0.174179,2427.4,2427.2,1.52743641]
[1642971632318,0.10379655,2427.6,2427.5,5.9863895]
[1642971632620,9.655e-05,2427.6,2427.5,5.75]
[1642971632818,9.655e-05,2427.6,2427.5,6.9147]
[1642971633215,9.655e-05,2427.6,2427.5,7.2147]
[1642971633418,0.00017555,2427.7,2427.6,5.37077645]
[1642971633623,0.00017555,2427.7,2427.6,1.1647]
[1642971633821,0.00017555,2427.7,2427.6,1.0]
[1642971634024,0.00017555,2427.7,2427.2,1.1647]
[1642971634218,0.00017555,2427.7,2427.2,0.4647]
[1642971634421,0.10379655,2427.9,2427.3,1.5263189]
[1642971634657,0.10379655,2427.9,2427.8,8.69162845]
[1642971634857,0.10379655,2427.9,2427.8,9.18762845]
[1642971635054,0.10379655,2427.9,2427.8,10.78762845]
[1642971635255,0.10379655,2427.9,2427.8,12.3205828]
[1642971635456,0.10379655,2427.9,2427.8,11.32895435]
[1642971636160,0.06076494,2428.1,2427.8,3.62895435]
[1642971636461,0.06076494,2428.1,2427.8,0.496]
[1642971636669,0.22546494,2428.1,2426.9,2.060983]
[1642971636860,0.06076494,2428.1,2426.9,0.1647]
[1642971637058,0.1647,2428.0,2426.7,2.4014]
[1642971637259,0.22546494,2428.1,2426.7,2.4014]
[1642971637463,0.06076494,2428.1,2427.3,1.24497357]
[1642971637865,0.06076494,2428.1,2427.0,0.1647]
[1642971638063,0.06076494,2428.1,2426.8,0.6607]
[1642971638512,0.06076494,2428.1,2426.8,2.2607]
[1642971639014,0.06076494,2428.1,2427.1,1.20447158]
[1642971639215,0.06076494,2428.1,2427.1,1.50447158]
[1642971639412,0.06076494,2428.1,2427.2,0.3]
[1642971639614,0.06076494,2428.1,2427.1,1.50447158]
[1642971639814,0.22546494,2428.1,2427.1,1.50447158]
[1642971640213,1.24197559,2428.0,2426.8,1.1647]
[1642971640414,0.1647,2427.9,2426.8,1.4647]
[1642971640612,0.1647,2427.9,2426.8,1.7647]
[1642971640812,0.1647,2427.9,2426.8,0.7647]
[1642971641013,0.22546494,2428.1,2426.8,0.7647]
[1642971641213,0.22546494,2428.1,2426.9,1.08697327]
[1642971641613,0.22546494,2428.1,2426.8,0.7647]
[1642971641817,0.06076494,2428.1,2426.8,0.7647]
[1642971642059,0.06076494,2428.1,2427.1,1.20350446]
[1642971642060,1.50191327,2428.1,2427.1,1.20350446]
[1642971642264,0.1647,2428.0,2427.1,1.20350446]
[1642971642459,0.1647,2428.0,2427.1,1.50350446]
[1642971642861,0.1647,2428.0,2427.1,0.3]
[1642971643064,2.44878841,2428.0,2426.9,0.3]
[1642971643263,2.44878841,2428.0,2426.8,0.1647]
[1642971643264,0.0129222,2427.9,2426.8,0.3]
[1642971643464,0.1647,2427.8,2426.6,0.3]
[1642971643664,0.1647,2427.8,2426.5,0.3]
[1642971643862,1.15643759,2427.7,2426.7,1.42251986]
[1642971644063,0.1647,2427.6,2426.7,2.02251986]
[1642971644264,0.1647,2427.6,2426.7,1.72251986]
[1642971644571,0.1648,2427.8,2426.7,2.02251986]
[1642971644764,0.1647,2428.0,2426.7,26.29251986]
[1642971644964,0.06076494,2428.1,2426.8,24.27]
[1642971645165,0.06076494,2428.1,2427.6,1.30623216]
[1642971645565,0.06076494,2428.1,2427.6,0.3]
[1642971645809,0.06076494,2428.1,2426.9,1.0]
[1642971646009,0.06076494,2428.1,2427.0,0.1647]
[1642971646413,0.06076494,2428.1,2427.0,0.4647]
[1642971646611,1.4274586,2428.1,2427.0,1.66906773]
[1642971646810,1.4274586,2428.1,2427.0,0.3]
[1642971646811,2.50130762,2428.0,2427.0,0.3]
[1642971647012,2.50130762,2428.0,2426.7,0.6]
[1642971647215,2.50130762,2428.0,2426.6,0.3]
[1642971647410,0.01293381,2427.9,2426.5,0.7647]
[1642971647612,0.1647,2427.8,2426.5,1.3]
[1642971647812,1.37699719,2427.5,2426.5,1.45910558]
[1642971648014,2.32344101,2427.4,2426.2,0.1648]
[1642971648221,0.17723178,2427.3,2426.0,5.0]
[1642971649020,1.51487242,2427.1,2426.1,1.14572355]
[1642971649220,0.1648,2427.0,2426.1,1.14572355]
[1642971649878,0.1648,2427.2,2426.1,1.14572355]
[1642971650469,0.1648,2427.2,2426.1,2.44572355]
[1642971650880,1.47739454,2427.0,2426.1,1.3]
[1642971651070,2.567243,2426.9,2426.1,1.3]
[1642971651470,1.77739454,2427.0,2426.1,1.3]
[1642971651676,0.1648,2426.9,2426.1,1.3]
[1642971652075,2.42220475,2426.9,2426.1,1.3]
[1642971652276,0.1648,2426.9,2426.1,1.3]
[1642971652481,2.48761591,2426.9,2426.1,1.3]
[1642971653524,0.1648,2426.9,2426.1,1.3]
[1642971653731,0.20587,2426.8,2426.0,5.0]
[1642971653934,3.20862206,2426.7,2426.0,5.3]
[1642971654129,3.50862206,2426.7,2426.0,5.3]
[1642971654529,3.20862206,2426.7,2426.0,5.3]
[1642971654826,0.1648,2426.7,2426.0,5.3]
[1642971655031,1.41703231,2426.6,2426.0,5.3]
[1642971655630,2.25848133,2426.5,2426.0,5.3]
[1642971655829,2.42328133,2426.5,2426.0,5.0]
[1642971656034,4.12515133,2426.5,2426.0,5.0]
[1642971656231,4.12515133,2426.5,2426.0,3.19900316]
[1642971656232,4.42515133,2426.5,2426.0,3.19900316]
[1642971656430,4.42515133,2426.5,2425.0,0.1648]
[1642971656431,0.03486163,2426.3,2425.0,0.1648]
[1642971656632,0.03964384,2426.1,2425.0,0.1648]
[1642971656829,0.1648,2426.0,2425.0,0.1648]
[1642971657073,0.37067,2426.0,2425.0,0.1648]
[1642971657265,2.35246864,2425.9,2425.0,0.1648]
[1642971657465,2.65246864,2425.9,2425.0,1.393122]
[1642971657672,2.65246864,2425.9,2425.0,0.1648]
[1642971657864,2.65246864,2425.9,2425.0,0.4648]
[1642971658264,2.65246864,2425.9,2425.0,0.1648]
[1642971658864,1.14050718,2425.7,2424.6,1.30840546]
[1642971659064,1.14050718,2425.7,2424.6,1.60840546]
[1642971659065,2.36219487,2425.6,2424.6,1.60840546]
[1642971659267,2.36219487,2425.6,2424.6,1.30840546]
[1642971659665,0.3,2425.7,2424.6,1.30840546]
[1642971659865,3.21247349,2425.9,2424.6,1.30840546]
[1642971660373,3.21247349,2425.9,2424.5,0.01223621]
[1642971660374,0.20587,2425.8,2424.5,0.01223621]
[1642971660569,0.20587,2425.8,2424.1,0.1648]
[1642971660570,0.1648,2425.7,2424.1,0.1648]
[1642971660824,0.71420591,2425.6,2424.1,0.1648]
[1642971661017,0.1648,2425.5,2424.1,0.1648]
[1642971661223,1.35472772,2425.5,2424.3,1.24458629]
[1642971661423,1.35472772,2425.5,2424.5,0.29470702]
[1642971661424,0.1648,2425.5,2424.5,0.29470702]
[1642971661622,0.1648,2425.8,2424.5,0.29470702]
[1642971661827,1.57727,2425.9,2424.5,0.29470702]
[1642971662022,1.67067,2425.9,2424.5,0.29470702]
[1642971662221,0.1648,2425.9,2424.9,0.85759025]
[1642971662427,0.37776064,2425.9,2425.2,1.23669359]
[1642971662621,0.37776064,2425.9,2425.2,1.53669359]
[1642971663223,0.37776064,2425.9,2425.2,0.3]
[1642971663424,0.37776064,2425.9,2424.4,1.398]
[1642971663623,0.37776064,2425.9,2424.4,1.698]
[1642971663822,0.37776064,2425.9,2424.4,2.698]
[1642971664427,1.45061107,2425.8,2424.7,1.22052958]
[1642971664675,0.38470651,2425.7,2424.7,1.52052958]
[1642971664876,0.54950651,2425.7,2424.7,0.3]
[1642971665081,2.68649173,2425.6,2424.2,0.01295178]
[1642971665281,0.75537651,2425.5,2424.2,0.3]
[1642971665481,3.13637509,2425.4,2424.2,0.00144444]
[1642971665685,0.75537651,2425.3,2424.2,0.00144444]
[1642971665885,1.1494539,2425.0,2424.2,0.00144444]
[1642971666084,2.46326781,2424.9,2424.2,0.00144444]
[1642971666281,0.1648,2424.8,2424.2,0.00144444]
[1642971666482,0.54650399,2424.8,2424.2,0.00144444]
[1642971667281,2.50112755,2424.7,2424.2,0.00144444]
[1642971667482,0.84650399,2424.6,2424.2,0.00144444]
[1642971667683,3.44820983,2424.5,2424.2,0.00144444]
[1642971667882,0.54650399,2424.4,2424.2,0.00144444]
[1642971668082,9.37580768,2424.3,2424.2,0.00144444]
[1642971668313,9.1987165,2424.3,2424.2,0.00144444]
[1642971668513,7.34991593,2424.3,2424.2,0.00144444]
[1642971669315,12.65917597,2424.3,2424.2,4.444e-05]
[1642971669516,10.08357399,2424.3,2424.2,4.444e-05]
[1642971669917,10.08357399,2424.3,2422.9,0.165141]
[1642971669918,10.38357399,2424.3,2422.9,0.165141]
[1642971670221,10.38357399,2424.3,2423.0,0.00144444]
[1642971670222,0.01204367,2424.0,2423.0,0.00144444]
[1642971670415,1.270856,2423.5,2423.0,0.00144444]
[1642971670620,0.86687,2423.4,2423.0,0.00144444]
[1642971670825,0.88617888,2423.4,2423.0,0.00144444]
[1642971671615,0.39017888,2423.3,2423.0,0.00144444]
[1642971673168,0.37934507,2423.3,2423.0,0.00144444]
[1642971673768,0.37934507,2423.3,2423.1,1.44999515]
[1642971673969,0.37934507,2423.3,2423.1,1.45143959]
[1642971674167,0.37934507,2423.6,2423.1,1.75143959]
[1642971674370,0.37934507,2423.6,2423.1,0.30144444]
[1642971674568,0.08682146,2423.7,2423.1,0.00144444]
[1642971674767,0.08682146,2423.7,2423.1,0.00144446]
[1642971674967,0.165,2423.6,2423.1,0.00144446]